bitfinex-derivatives/quotes_ETHF0:USTF0_20250102
["timestamp","ask_amount","ask_price","bid_price","bid_amount"]
[1735826905724,0.28971,3455.4,3455.3,0.28971]
[1735826905919,0.2897,3455.4,3455.3,0.28971]
[1735826906120,3.2078,3455.5,3455.4,0.2897]
[1735826906324,3.2078,3455.5,3455.1,2.46084952]
[1735826906525,0.28971,3455.3,3455.2,1.294]
[1735826906721,3.2078,3455.5,3455.2,1.58371]
[1735826907029,0.2897,3455.4,3455.2,1.294]
[1735826907316,0.28971,3455.3,3455.2,1.58371]
[1735826907519,0.2897,3455.4,3455.3,0.28971]
[1735826907825,0.28971,3455.3,3455.2,1.58372]
[1735826908219,3.2078,3455.5,3455.2,1.294]
[1735826908520,3.4975,3455.5,3455.4,0.2897]
[1735826908916,0.2897,3455.4,3455.3,0.2897]
[1735826909719,0.28971,3455.3,3455.2,1.294]
[1735826910024,3.4975,3455.5,3455.4,0.2897]
[1735826911229,3.4975,3455.5,3455.2,1.58371]
[1735826911230,0.28971,3455.3,3455.2,1.58371]
[1735826911920,0.28971,3455.3,3455.2,1.294]
[1735826912122,0.28974,3454.9,3454.8,0.28974]
[1735826912426,0.28974,3454.9,3453.5,4.4710057]
[1735826912427,0.28985,3453.6,3453.5,4.4710057]
[1735826913428,0.82315,3453.6,3453.5,2.7550057]
[1735826913729,0.82315,3453.6,3452.9,11.17751425]
[1735826913730,0.28991,3452.9,3452.6,1.58494]
[1735826914023,0.72466,3453.5,3452.3,0.28995]
[1735826914024,0.28993,3452.7,3452.3,0.28995]
[1735826914223,3.2078,3452.6,3452.2,1.295]
[1735826914430,3.49774,3452.6,3452.3,0.28996]
[1735826915027,3.2078,3452.6,3452.2,1.295]
[1735826915324,3.2078,3453.1,3452.2,3.75584952]
[1735826915626,0.28991,3452.9,3452.2,3.75584952]
[1735826915824,0.28993,3452.8,3452.4,0.28995]
[1735826916026,3.2078,3453.1,3452.2,1.295]
[1735826916228,2.46084952,3453.3,3452.2,1.295]
[1735826916229,0.28995,3452.4,3452.2,1.295]
[1735826916424,3.2078,3452.5,3452.1,0.5557]
[1735826916620,0.28996,3452.4,3452.1,0.28997]
[1735826916818,0.28996,3452.4,3451.8,2.46084952]
[1735826916819,0.28996,3452.3,3452.0,0.28998]
[1735826917020,0.28996,3452.4,3452.1,0.28997]
[1735826917720,3.2078,3452.5,3451.8,3.75584952]
[1735826918026,0.28996,3452.4,3451.8,3.75584952]
[1735826918219,3.2078,3452.5,3452.3,0.28996]
[1735826918526,3.2078,3452.5,3452.4,0.28995]
[1735826918721,3.2078,3452.9,3452.8,0.28992]
[1735826918922,3.2078,3452.9,3452.8,1.58492]
[1735826919222,3.2078,3453.3,3453.2,0.28989]
[1735826919419,3.2078,3453.3,3453.2,2.75073952]
[1735826919620,3.49762,3454.1,3453.9,0.28982]
[1735826919923,0.28982,3454.0,3453.8,0.28983]
[1735826920119,0.28983,3453.9,3453.8,0.28983]
[1735826920322,3.2078,3454.1,3453.6,3.75584952]
[1735826920630,3.2078,3454.1,3454.0,0.28982]
[1735826921331,3.2078,3454.1,3454.0,2.75066952]
[1735826922326,3.2078,3454.1,3454.0,0.28982]
[1735826923029,3.2078,3454.1,3453.6,3.2078]
[1735826923229,0.28983,3453.9,3453.7,1.58484]
[1735826923427,3.2078,3454.1,3453.7,1.295]
[1735826923631,3.2078,3454.1,3454.0,0.28982]
[1735826924130,0.28982,3454.0,3453.7,1.295]
[1735826924319,0.28982,3454.0,3453.8,0.28983]
[1735826924524,0.28982,3454.0,3453.9,0.28983]
[1735826924728,3.49761,3454.1,3453.7,1.295]
[1735826924927,3.49761,3454.1,3454.0,0.28982]
[1735826925229,3.2078,3454.5,3454.4,0.28978]
[1735826925922,0.2898,3454.3,3454.1,0.28981]
[1735826926126,3.2078,3454.5,3454.0,0.28982]
[1735826926431,0.28981,3454.1,3454.0,0.28982]
[1735826926624,3.2078,3454.5,3453.7,1.295]
[1735826926820,3.2078,3454.5,3454.2,0.2898]
[1735826926821,0.2898,3454.3,3454.2,0.2898]
[1735826927028,0.2898,3454.2,3454.1,0.2898]
[1735826927231,3.2078,3454.5,3454.2,0.2898]
[1735826927430,0.28978,3454.4,3454.2,0.2898]
[1735826927931,0.28979,3454.4,3454.2,0.2898]
[1735826928632,3.2078,3454.5,3453.9,1.295]
[1735826929032,0.28979,3454.4,3453.9,1.295]
[1735826929229,3.2078,3454.5,3453.9,1.295]
[1735826929425,3.49758,3454.5,3454.3,0.28979]
[1735826930428,0.28979,3454.3,3454.1,0.28981]
[1735826930735,3.2078,3454.5,3454.3,0.28979]
[1735826930736,3.49758,3454.5,3454.3,0.28979]
[1735826931327,3.49758,3454.5,3453.6,3.2078]
[1735826931328,3.2078,3454.5,3453.6,3.2078]
[1735826931632,3.2078,3454.1,3454.0,0.28982]
[1735826932330,3.2078,3454.1,3452.7,4.5028]
[1735826932634,3.2078,3453.5,3453.4,0.28986]
[1735826933328,3.49767,3453.5,3453.3,0.28987]
[1735826933725,0.28987,3453.4,3453.3,0.28987]
[1735826934030,0.28988,3453.3,3453.2,0.28988]
[1735826934631,0.28987,3453.4,3453.1,0.28989]
[1735826934838,3.2078,3453.5,3453.0,1.295]
[1735826935033,3.49766,3453.5,3453.4,0.28987]
[1735826936032,3.2078,3453.5,3453.0,1.295]
[1735826936431,3.2078,3453.5,3453.4,0.28987]
[1735826936838,3.2078,3454.1,3454.0,0.28981]
[1735826937227,3.2078,3454.1,3454.0,1.56481]
[1735826937730,3.2078,3454.8,3454.7,0.28976]
[1735826938139,3.37319438,3455.2,3454.4,3.2078]
[1735826938430,3.37319438,3455.2,3454.5,0.5725]
[1735826938736,0.28973,3455.1,3455.0,0.28973]
[1735826939438,0.28972,3455.2,3455.1,0.28972]
[1735826940033,0.28972,3455.2,3455.0,0.28973]
[1735826940738,0.5576,3455.6,3454.8,1.275]
[1735826941041,0.5576,3455.6,3454.9,0.72436]
[1735826941335,0.28969,3455.5,3455.3,0.28971]
[1735826941536,0.84729,3455.6,3455.4,0.2897]
[1735826942439,0.28969,3455.5,3455.4,0.2897]
[1735826942834,0.28969,3455.5,3455.3,0.2897]
[1735826944137,0.2897,3455.4,3454.8,5.20718]
[1735826944333,0.28971,3455.3,3455.1,0.28972]
[1735826944538,0.5576,3455.6,3454.8,4.4828]
[1735826944944,3.2078,3455.7,3454.9,2.46419372]
[1735826945137,3.37319438,3456.1,3455.6,3.2078]
[1735826945342,3.37319438,3456.1,3456.0,3.49745]
[1735826945944,3.37319438,3456.1,3455.9,1.56365]
[1735826946143,3.37319438,3456.1,3455.9,1.274]
[1735826946342,3.2078,3456.3,3455.9,1.274]
[1735826946644,3.49743,3456.3,3456.1,0.28964]
[1735826947245,0.28963,3456.3,3456.1,0.28964]
[1735826947447,0.54397021,3456.6,3455.9,1.274]
[1735826947740,3.2078,3456.7,3456.5,0.28961]
[1735826948047,3.37319438,3456.8,3456.7,0.28959]
[1735826948542,3.37319438,3456.8,3456.3,3.2078]
[1735826948734,3.2078,3456.5,3456.1,1.274]
[1735826948936,0.28966,3455.9,3455.6,0.28968]
[1735826949140,3.2078,3456.1,3455.4,4.4818]
[1735826949341,0.82372,3456.4,3456.2,0.28963]
[1735826949545,0.5341,3456.4,3455.6,2.46419372]
[1735826949750,3.2078,3456.6,3455.9,3.2078]
[1735826949943,3.37319438,3456.6,3455.9,3.2078]
[1735826950141,3.37319438,3456.6,3456.4,0.28961]
[1735826950439,3.37319438,3456.6,3455.9,3.2078]
[1735826950440,3.37319438,3456.6,3456.3,1.274]
[1735826950848,3.37319438,3456.6,3456.5,0.28961]
[1735826951246,3.37319438,3456.6,3456.3,1.274]
[1735826951542,5.50124928,3457.0,3456.3,1.274]
[1735826951543,3.37319438,3457.0,3456.3,1.274]
[1735826951735,3.66276438,3457.0,3456.3,1.274]
[1735826951945,3.37319438,3457.0,3456.3,4.4818]
[1735826952145,0.28961,3456.6,3456.4,0.28961]
[1735826952539,0.28959,3456.8,3456.3,1.274]
[1735826952845,0.2896,3456.7,3456.6,0.2896]
[1735826953234,6.58099438,3457.1,3456.3,1.274]
[1735826953545,0.2896,3456.7,3456.5,0.28961]
[1735826954251,0.2896,3456.6,3456.5,0.28961]
[1735826954447,6.58099438,3457.1,3456.3,1.274]
[1735826954751,0.28959,3456.7,3456.5,0.2896]
[1735826954953,0.28957,3457.0,3456.7,0.28959]
[1735826955245,6.58099438,3457.1,3456.7,0.28959]
[1735826955446,3.2078,3457.1,3456.7,0.28959]
[1735826955747,3.2078,3457.1,3456.3,1.274]
[1735826955950,0.28957,3457.0,3456.8,0.28958]
[1735826956142,3.2078,3457.1,3456.3,1.274]
[1735826956347,3.49736,3457.1,3457.0,0.28957]
[1735826956548,3.49736,3457.1,3456.9,0.28957]
[1735826956948,0.28957,3457.0,3456.8,0.28958]
[1735826957148,0.28957,3457.0,3456.9,0.28957]
[1735826957449,0.28958,3457.0,3456.8,0.28958]
[1735826958041,0.28958,3457.0,3456.3,1.99805]
[1735826958042,3.2078,3457.1,3457.0,0.28957]
[1735826960048,3.2078,3457.6,3457.5,0.28953]
[1735826960445,3.37319438,3458.1,3457.4,1.274]
[1735826960644,3.66267438,3458.1,3458.0,0.28948]
[1735826960841,3.37319438,3458.1,3457.4,2.48093]
[1735826961041,3.37319438,3458.1,3458.0,0.28948]
[1735826961647,3.2078,3458.4,3457.7,2.46419372]
[1735826961851,3.2078,3458.4,3458.3,0.28946]
[1735826962054,0.9414,3458.9,3458.7,0.28942]
[1735826962055,3.2078,3458.8,3458.7,0.28942]
[1735826962247,0.9414,3458.9,3458.7,0.28942]
[1735826962551,0.9414,3458.9,3458.2,1.99766]
[1735826962849,0.9414,3458.9,3458.8,0.28942]
[1735826963057,0.28942,3458.8,3458.2,1.274]
[1735826963260,0.9414,3458.9,3458.2,1.274]
[1735826963748,0.28942,3458.8,3458.5,0.28944]
[1735826964051,0.28944,3458.6,3458.3,0.28945]
[1735826964352,0.28946,3458.4,3458.1,3.49727]
[1735826964557,4.1492,3458.9,3457.8,1.274]
[1735826964558,3.2078,3458.5,3457.8,1.274]
[1735826964857,0.28946,3458.3,3458.1,0.28947]
[1735826965152,3.2078,3458.5,3458.1,0.28947]
[1735826965353,0.28946,3458.3,3458.1,0.28947]
[1735826965562,3.2078,3458.5,3457.8,1.274]
[1735826965855,0.28946,3458.3,3458.1,0.28947]
[1735826966055,0.28945,3458.4,3458.2,0.28946]
[1735826966248,4.1492,3458.9,3457.8,1.274]
[1735826966451,4.1492,3458.9,3458.1,3.2078]
[1735826966749,4.1492,3458.9,3458.6,0.28943]
[1735826966957,0.28942,3458.8,3458.6,0.28943]
[1735826967757,0.28942,3458.8,3458.7,0.28942]
[1735826967957,3.2078,3458.9,3458.8,0.28942]
[1735826968151,3.2078,3459.3,3459.2,0.28938]
[1735826968351,3.49718,3459.3,3459.1,0.28939]
[1735826968656,3.49718,3459.3,3458.7,0.72355]
[1735826968957,3.2078,3459.3,3459.2,0.28938]
[1735826969955,4.1535,3459.7,3459.0,0.2894]
[1735826970158,4.1535,3459.7,3459.0,0.72351]
[1735826970361,4.1535,3459.7,3459.6,0.28935]
[1735826970664,3.2078,3459.7,3459.6,0.28935]
[1735826971253,3.49714,3459.7,3459.5,1.262]
[1735826971560,3.49715,3459.7,3459.5,1.55135]
[1735826972557,3.2078,3460.1,3459.5,1.262]
[1735826972754,0.28934,3459.8,3459.6,0.28934]
[1735826972951,3.2078,3460.1,3459.5,1.262]
[1735826973257,3.49712,3460.1,3459.5,1.262]
[1735826973457,3.49712,3460.1,3459.8,0.28933]
[1735826973458,0.28932,3460.0,3459.8,0.28933]
[1735826973859,3.2078,3460.1,3460.0,0.28932]
[1735826974260,3.2078,3460.1,3459.5,1.262]
[1735826974461,3.2078,3460.1,3460.0,0.28932]
[1735826979562,3.49711,3460.1,3460.0,0.28932]
[1735826979773,3.2078,3460.1,3460.0,0.28932]
[1735826981064,0.28928,3460.5,3460.4,0.28928]
[1735826981262,3.2078,3460.6,3459.8,3.2078]
[1735826981467,0.28931,3460.2,3460.0,0.28931]
[1735826982266,0.2893,3460.2,3460.1,0.2893]
[1735826982468,0.28929,3460.3,3460.2,0.2893]
[1735826982965,0.2893,3460.3,3460.1,0.2893]
[1735826983267,0.2893,3460.3,3460.2,0.2893]
[1735826984356,3.2078,3460.6,3459.8,3.2078]
[1735826984867,0.2893,3460.3,3460.2,0.2893]
[1735826985261,0.28929,3460.3,3459.8,3.2078]
[1735826985462,0.28929,3460.3,3460.2,0.2893]
[1735826985863,0.54338306,3460.5,3459.8,3.2078]
[1735826986065,0.28929,3460.4,3460.3,0.28928]
[1735826986273,0.2893,3460.2,3460.1,0.2893]
[1735826986467,0.54334771,3460.5,3459.9,0.72332]
[1735826986662,3.49707,3460.6,3460.5,0.28927]
[1735826986867,3.49707,3460.6,3460.2,0.2893]
[1735826986868,0.2893,3460.3,3460.2,0.2893]
[1735826987066,0.28931,3460.2,3460.1,0.2893]
[1735826987873,3.2078,3460.2,3459.5,0.4634]
[1735826988065,0.28934,3459.8,3459.7,0.28933]
[1735826988369,0.28932,3460.0,3459.9,0.28932]
[1735826988971,0.54403374,3460.1,3459.6,1.262]
[1735826989168,0.28933,3459.9,3459.8,0.28933]
[1735826989565,0.28932,3460.0,3459.9,0.28932]
[1735826989767,0.7233,3460.0,3459.1,2.52627512]
[1735826989967,0.28937,3459.4,3459.3,0.28937]
[1735826990169,0.28938,3459.3,3459.2,0.28938]
[1735826990368,0.54403374,3459.7,3459.2,1.262]
[1735826990967,0.28936,3459.5,3459.4,0.28936]
[1735826991168,0.28937,3459.4,3459.3,0.28937]
[1735826991765,0.28937,3459.3,3459.2,1.262]
[1735826991973,0.28937,3459.4,3459.3,0.28937]
[1735826994976,0.54403374,3459.7,3459.2,1.262]
[1735826995171,0.54403374,3459.7,3459.2,3.72033092]
[1735826995372,3.2078,3459.8,3459.3,0.72344]
[1735826995579,3.2078,3459.8,3459.7,0.28934]
[1735826995774,3.75414434,3459.8,3459.7,0.28934]
[1735826996073,0.28929,3460.3,3460.2,0.2893]
[1735826996375,0.2893,3460.2,3460.1,1.5423]
[1735826996676,0.83567429,3460.3,3460.1,1.5423]
[1735826996873,0.54637429,3460.3,3460.2,0.2893]
[1735826997276,0.2893,3460.2,3460.1,0.2893]
[1735826997481,0.83567429,3460.3,3459.8,1.253]
[1735826997778,0.83567429,3460.3,3460.2,0.2893]
[1735826998979,0.28932,3460.0,3459.9,0.28932]
[1735826999276,0.28932,3459.9,3459.8,0.28933]
[1735826999477,0.54637429,3460.3,3459.7,1.253]
[1735827000178,0.2893,3460.2,3460.1,0.28931]
[1735827000478,0.2893,3460.2,3459.7,1.253]
[1735827000479,0.54637429,3460.3,3459.7,1.253]
[1735827000679,0.28931,3460.1,3459.9,0.28932]
[1735827000870,0.28931,3460.1,3459.7,1.253]
[1735827001181,0.54637429,3460.3,3459.7,1.253]
[1735827001480,0.2893,3460.2,3459.7,1.253]
[1735827001684,0.54637429,3460.3,3459.7,1.253]
[1735827002175,0.28932,3460.0,3459.9,0.28932]
[1735827002589,2.78604568,3460.3,3459.7,1.253]
[1735827002879,3.07534568,3460.3,3460.2,0.2893]
[1735827003086,2.78604568,3460.3,3459.7,1.253]
[1735827003285,0.28931,3460.1,3460.0,0.28931]
[1735827003674,0.28933,3459.8,3459.7,0.28934]
[1735827003872,0.54637429,3460.2,3459.6,3.2078]
[1735827004474,0.28932,3460.0,3459.9,0.28932]
[1735827004679,0.83567429,3460.2,3460.1,0.28931]
[1735827004983,0.54637429,3460.2,3460.1,0.28931]
[1735827005285,0.54637429,3460.3,3460.2,0.2893]
[1735827006177,6.18957584,3460.3,3460.2,0.2893]
[1735827007579,6.18957584,3460.3,3459.8,3.49713]
[1735827007580,0.28932,3460.0,3459.8,3.49713]
[1735827007777,0.54637429,3460.3,3459.6,1.253]
[1735827007972,0.28932,3459.9,3459.7,0.28934]
[1735827008378,3.2078,3459.9,3459.4,0.5252]
[1735827008583,1.07567429,3459.8,3459.0,4.9829]
[1735827009186,0.28937,3459.4,3459.2,0.28938]
[1735827009582,0.54637429,3459.8,3459.0,3.7299]
[1735827009777,0.54637429,3459.8,3459.7,0.28934]
[1735827010287,0.2893,3460.2,3460.0,0.28931]
[1735827010488,0.54703978,3460.3,3459.9,1.253]
[1735827010689,0.28931,3460.1,3460.0,0.28932]
[1735827010891,0.54703978,3460.3,3460.0,0.28932]
[1735827011087,0.2893,3460.2,3460.0,0.28932]
[1735827011285,5.48917673,3460.2,3460.0,0.28932]
[1735827011486,0.54703978,3460.1,3460.0,0.28932]
[1735827012193,0.83634978,3460.1,3459.9,1.253]
[1735827012487,5.74691651,3460.1,3460.0,0.28932]
[1735827013983,5.19987673,3460.1,3460.0,0.28932]
[1735827014184,12.98799105,3460.1,3460.0,0.28932]
[1735827015393,6.79327257,3460.2,3460.1,0.28931]
[1735827015691,7.08257257,3460.2,3460.1,0.28931]
[1735827015886,6.79327257,3460.2,3459.8,0.4955]
[1735827016086,6.79327257,3460.2,3459.8,1.7485]
[1735827016284,0.54688679,3460.1,3460.0,0.28931]
[1735827016583,0.83621577,3460.1,3460.0,0.28931]
[1735827016788,0.28931,3460.1,3460.0,0.28931]
[1735827016989,0.28932,3460.0,3459.9,0.28932]
[1735827017190,0.28932,3459.9,3459.8,2.03783]
[1735827017488,0.28932,3459.9,3459.8,1.253]
[1735827018094,0.54689375,3459.9,3459.4,4.4608]
[1735827018299,0.28935,3459.7,3459.5,0.28936]
[1735827018704,0.54689375,3459.9,3459.4,4.4608]
[1735827018905,5.19987673,3460.0,3459.7,2.05538509]
[1735827019101,5.19987673,3460.0,3459.9,0.28932]
[1735827019406,6.79327257,3460.2,3460.1,0.28931]
[1735827019707,6.79327257,3460.2,3460.1,2.34469509]
[1735827019904,6.79327257,3460.2,3460.1,0.28931]
[1735827020302,0.28931,3460.1,3460.0,1.253]
[1735827020501,0.83633643,3460.1,3460.0,1.253]
[1735827020998,0.54702643,3460.1,3460.0,1.253]
[1735827021196,0.54702643,3460.1,3460.0,1.54232]
[1735827021397,12.00280692,3460.2,3460.0,1.253]
[1735827021598,13.83408137,3460.1,3460.0,1.253]
[1735827022195,13.54477137,3460.1,3459.3,3.2078]
[1735827022404,0.28935,3459.7,3459.4,0.28936]
[1735827022606,0.5471227,3459.8,3459.3,3.2078]
[1735827022804,0.5471227,3459.8,3459.5,0.28936]
[1735827023306,0.28935,3459.6,3459.5,0.28936]
[1735827024111,0.28935,3459.6,3459.4,0.28936]
[1735827024311,5.20953435,3459.6,3459.5,0.28936]
[1735827024511,5.75665705,3459.6,3459.5,0.28936]
[1735827024710,6.04600705,3459.6,3459.5,0.28936]
[1735827025406,0.28937,3459.4,3459.3,3.2078]
[1735827025713,1.01281,3459.3,3458.6,0.28943]
[1735827025903,1.01281,3459.3,3458.5,1.241]
[1735827025904,3.2078,3459.1,3458.5,1.241]
[1735827026112,0.4922,3459.0,3458.5,1.241]
[1735827026403,0.5471227,3459.0,3458.9,0.28941]
[1735827026602,3.2078,3459.1,3459.0,0.2894]
[1735827026808,3.7544294,3459.1,3459.0,0.2894]
[1735827027001,3.49719,3459.1,3459.0,0.2894]
[1735827027205,3.4972,3459.1,3459.0,0.2894]
[1735827027399,0.2894,3459.0,3458.8,0.28941]
[1735827027606,0.2894,3459.0,3458.9,0.28941]
[1735827028111,3.2078,3459.1,3459.0,0.2894]
[1735827028314,7.78811432,3459.1,3459.0,1.5314]
[1735827029514,6.78585227,3459.1,3459.0,1.5314]
[1735827029902,6.78585227,3459.1,3459.0,3.58678509]
[1735827030105,6.78585227,3459.1,3459.0,6.79458509]
[1735827030305,5.21645227,3459.1,3459.0,6.79458509]
[1735827030610,7.78811432,3459.5,3459.4,0.28937]
[1735827030913,7.78811432,3459.5,3459.4,5.55255509]
[1735827031806,5.65659686,3459.6,3459.4,5.26318509]
[1735827032010,5.65659686,3459.6,3459.5,0.28936]
[1735827032716,5.65659686,3459.6,3459.5,1.53136]
[1735827032908,5.65659686,3459.6,3459.5,0.28936]
[1735827033109,3.89871812,3459.6,3459.5,1.53136]
[1735827033505,3.39381812,3459.6,3459.5,1.53136]
[1735827034616,5.65659686,3459.7,3459.5,1.242]
[1735827034815,5.65659686,3459.7,3459.6,0.28935]
[1735827035210,5.65659686,3459.7,3459.5,1.242]
[1735827035410,0.28936,3459.5,3459.4,3.2078]
[1735827035610,0.28939,3459.2,3459.1,1.53038]
[1735827036010,1.02237957,3459.5,3458.8,5.26318509]
[1735827036216,1.02237957,3459.5,3458.3,7.7554]
[1735827036217,0.28942,3458.7,3458.6,4.83380447]
[1735827036410,0.28942,3458.7,3458.6,0.28943]
[1735827036607,0.28944,3458.5,3458.4,3.2078]
[1735827036918,0.28947,3458.2,3458.1,0.28947]
[1735827037307,0.28947,3458.1,3458.0,4.54437447]
[1735827037809,3.49727,3458.1,3458.0,4.54437447]
[1735827038014,3.49727,3458.1,3457.3,5.26318509]
[1735827038015,0.28954,3457.3,3457.1,0.28956]
[1735827038319,0.28955,3457.2,3457.1,0.28956]
[1735827038719,0.28957,3457.0,3456.9,2.00554447]
[1735827039013,0.28957,3457.0,3456.9,0.47397447]
[1735827039612,3.2078,3457.1,3456.5,1.242]
[1735827039916,3.2078,3457.1,3455.8,2.46144416]
[1735827039917,0.28963,3456.3,3456.2,0.28963]
[1735827040514,3.2078,3456.7,3455.9,3.2078]
[1735827040714,0.28965,3456.0,3455.9,3.2078]
[1735827041019,0.28968,3455.6,3455.5,1.242]
[1735827041519,0.28969,3455.6,3455.3,0.28971]
[1735827041721,0.28967,3455.8,3455.5,0.28969]
[1735827042721,3.36866517,3455.6,3455.5,0.28969]
[1735827043218,3.65835517,3455.6,3455.3,0.28971]
[1735827043419,3.36866517,3455.6,3455.3,0.28971]
[1735827043621,3.36866517,3455.6,3455.4,0.2897]
[1735827044122,2.24257643,3455.8,3455.2,3.2078]
[1735827044313,0.28969,3455.6,3455.2,3.2078]
[1735827044517,2.24257643,3455.8,3455.2,3.2078]
[1735827044713,2.53224643,3455.8,3455.2,3.2078]
[1735827044917,2.24257643,3455.8,3455.2,3.2078]
[1735827045122,3.87656517,3455.9,3455.2,3.2078]
[1735827045318,0.5079,3455.9,3455.3,0.2897]
[1735827045621,0.28969,3455.6,3455.3,0.2897]
[1735827046007,0.28969,3455.6,3455.2,3.49751]
[1735827046212,0.28969,3455.6,3455.2,3.2078]
[1735827046409,0.5079,3455.9,3455.3,0.2897]
[1735827046617,0.28968,3455.7,3455.3,0.2897]
[1735827047116,3.2078,3455.6,3455.0,2.46144416]
[1735827047312,3.2078,3455.6,3455.4,0.2897]
[1735827047513,3.2078,3456.0,3455.9,0.28966]
[1735827047716,2.24257643,3456.5,3455.9,44.0078]
[1735827047911,2.24257643,3456.5,3456.4,0.28962]
[1735827048721,0.28957,3457.1,3456.8,0.28958]
[1735827049023,0.28958,3456.9,3456.5,0.2896]
[1735827049329,0.2896,3456.7,3456.3,3.49742]
[1735827049521,3.49737,3457.0,3456.6,0.28959]
[1735827050019,3.49737,3457.0,3456.3,3.2078]
[1735827050221,3.2078,3457.0,3456.9,0.28958]
[1735827050423,3.2078,3457.1,3456.9,0.28958]
[1735827050617,3.2078,3457.1,3457.0,0.28957]
[1735827051320,0.78533,3457.5,3456.7,3.2078]
[1735827051515,0.28955,3457.2,3456.9,0.28957]
[1735827051818,0.28954,3457.4,3457.1,0.28956]
[1735827052019,0.4958,3457.5,3456.7,3.2078]
[1735827052219,0.28957,3457.0,3456.7,3.49739]
[1735827052418,0.28957,3457.0,3456.8,0.28958]
[1735827053123,0.28956,3457.1,3456.8,0.28958]
[1735827053714,0.28956,3457.1,3456.7,3.2078]
[1735827053919,0.28956,3457.1,3456.9,0.28957]
[1735827054917,3.2078,3457.3,3456.7,3.2078]
[1735827055116,0.28955,3457.2,3457.0,0.28956]
[1735827055928,3.2078,3457.3,3456.7,3.2078]
[1735827056122,0.28957,3457.1,3456.9,0.28957]
[1735827056324,0.28957,3457.1,3456.7,3.2078]
[1735827056626,0.28957,3457.1,3456.9,0.28957]
[1735827056925,0.28955,3457.2,3456.7,3.2078]
[1735827057224,0.28955,3457.2,3457.1,0.28956]
[1735827057720,3.49735,3457.3,3457.2,0.28955]
[1735827057926,3.2078,3457.3,3457.2,0.28955]
[1735827058118,0.28953,3457.5,3457.0,0.28957]
[1735827058319,0.28954,3457.3,3456.8,0.28958]
[1735827058517,0.28954,3457.4,3457.2,0.28954]
[1735827058918,3.2078,3457.7,3456.7,3.2078]
[1735827059124,0.28952,3457.6,3456.9,0.28958]
[1735827059425,0.28952,3457.6,3457.4,0.28953]
[1735827059616,3.2078,3457.7,3457.4,0.28953]
[1735827059822,0.28952,3457.6,3457.4,0.28953]
[1735827060126,3.2078,3457.7,3456.9,0.4845]
[1735827060730,0.28953,3457.5,3457.3,0.28954]
[1735827060926,0.28953,3457.5,3456.9,0.4845]
[1735827060927,3.2078,3457.7,3456.9,0.4845]
[1735827061129,3.2078,3457.7,3457.0,0.72392]
[1735827061324,3.2078,3457.7,3457.6,0.28952]
[1735827062126,3.2078,3458.3,3457.5,3.2078]
[1735827062322,3.49726,3458.3,3458.1,0.28947]
[1735827062724,3.2078,3458.3,3457.5,5.6879]
[1735827062930,3.2078,3458.3,3458.2,0.28947]
[1735827066426,3.49726,3458.3,3458.0,1.246]
[1735827066631,3.49726,3458.3,3458.1,0.28947]
[1735827066928,3.49726,3458.3,3458.2,0.28947]
[1735827066929,3.2078,3458.3,3458.2,0.28947]
[1735827067529,0.28944,3458.6,3458.4,0.28944]
[1735827067928,3.2078,3458.8,3458.6,0.28943]
[1735827068129,3.2078,3458.8,3458.7,0.28942]
[1735827068332,3.2078,3458.8,3458.3,0.72365]
[1735827068333,0.28939,3459.1,3458.8,0.28941]
[1735827068630,3.2078,3459.2,3459.0,0.28939]
[1735827068631,3.49719,3459.2,3459.0,0.28939]
[1735827068831,3.2078,3459.2,3459.0,0.28939]
[1735827069026,0.28941,3458.9,3458.6,0.28943]
[1735827069231,0.28941,3458.9,3458.8,0.28942]
[1735827069437,3.2078,3459.2,3458.8,1.245]
[1735827069638,0.2894,3459.1,3458.8,1.245]
[1735827069939,3.2078,3459.2,3458.8,1.245]
[1735827070131,3.49719,3459.2,3459.1,0.28939]
[1735827071231,3.2078,3459.2,3459.1,0.28939]
[1735827071732,3.2078,3459.2,3458.8,1.755]
[1735827071733,0.80786,3459.5,3458.8,2.47854]
[1735827071930,0.28937,3459.4,3459.3,0.28937]
[1735827072133,0.5185,3459.5,3459.1,0.28938]
[1735827072332,0.28937,3459.4,3459.2,0.28938]
[1735827072936,3.2078,3460.0,3459.0,0.72349]
[1735827073136,3.2078,3459.6,3458.9,5.66641487]
[1735827073438,0.28938,3459.3,3459.2,0.28938]
[1735827073836,5.66641487,3459.6,3458.9,3.2078]
[1735827074033,3.2078,3459.6,3458.9,3.2078]
[1735827074239,3.2078,3459.6,3459.1,0.28938]
[1735827074433,0.28938,3459.2,3459.1,0.28938]
[1735827074939,0.2894,3459.1,3459.0,0.2894]
[1735827075239,0.2894,3459.0,3458.9,3.2078]
[1735827075433,0.2894,3459.0,3458.9,3.49721]
[1735827075636,0.28945,3458.5,3458.3,3.49725]
[1735827075834,0.4981,3458.9,3458.3,3.2078]
[1735827076031,0.28944,3458.6,3458.5,0.28944]
[1735827076237,0.4981,3458.9,3458.3,3.2078]
[1735827076238,0.28943,3458.7,3458.4,0.28945]
[1735827076534,0.28943,3458.7,3458.5,0.28944]
[1735827077134,0.28943,3458.6,3458.5,0.28944]
[1735827077336,0.28943,3458.7,3458.5,0.28944]
[1735827077939,0.28942,3458.8,3458.6,0.28943]
[1735827078141,0.28944,3458.5,3458.4,0.28945]
[1735827078341,0.28944,3458.6,3458.5,0.28944]
[1735827078636,0.4981,3458.9,3458.3,4.4528]
[1735827078841,0.4981,3458.9,3458.7,0.28942]
[1735827078842,0.28942,3458.8,3458.7,0.28942]